bitfinex/quotes_BTCUSD_20250421
["timestamp","ask_amount","ask_price","bid_price","bid_amount"]
[1745256905358,0.24136421,87006.0,87003.0,0.22987671]
[1745256905592,0.01149359,87005.0,86998.0,0.23089008]
[1745256905867,0.01149359,87005.0,87001.0,0.24149488]
[1745256906097,0.2298468,87015.0,87001.0,0.24149488]
[1745256906098,0.01149266,87012.0,87008.0,0.22986195]
[1745256906320,0.01149306,87009.0,87003.0,0.01149385]
[1745256906545,0.01149332,87007.0,87004.0,0.22987402]
[1745256906769,0.01149279,87011.0,87008.0,0.22986354]
[1745256906994,0.001,87005.0,87004.0,0.22987246]
[1745256907416,0.22985963,87010.0,87004.0,0.01149372]
[1745256907643,0.22987448,87004.0,87003.0,0.001]
[1745256907856,0.2413682,87004.0,86998.0,0.001]
[1745256908078,0.24137957,87001.0,86998.0,0.001]
[1745256908304,0.01149332,87007.0,86998.0,0.001]
[1745256908537,0.01149412,87001.0,86998.0,0.001]
[1745256908762,0.34364139,87000.0,86998.0,0.001]
[1745256909664,0.0474,86999.0,86998.0,0.001]
[1745256909886,0.048,87014.0,87002.0,0.01149398]
[1745256910103,0.2298509,87013.0,87001.0,0.01149412]
[1745256910327,0.16175594,87014.0,87006.0,0.01149346]
[1745256910537,0.01149095,87025.0,87013.0,0.01149253]
[1745256910745,0.35506894,87024.0,87020.0,0.22983002]
[1745256910992,0.01149161,87020.0,87018.0,0.22983704]
[1745256911200,0.22985363,87012.0,87006.0,0.22986662]
[1745256911410,0.01149306,87009.0,86998.0,0.01249451]
[1745256911624,0.01149372,87004.0,86998.0,0.001]
[1745256911796,0.22988769,86999.0,86998.0,0.001]
[1745256912865,0.22988769,86999.0,86998.0,0.002]
[1745256913086,0.23088769,86999.0,86998.0,0.002]
[1745256913928,0.08088769,86999.0,86998.0,0.002]
[1745256914131,0.001,86999.0,86998.0,0.002]
[1745256914725,0.001,86999.0,86998.0,0.003]
[1745256916457,0.11475594,86999.0,86998.0,0.003]
[1745256917071,0.12929679,86999.0,86998.0,0.003]
[1745256917308,0.30669679,86999.0,86998.0,0.003]
[1745256917504,0.30669679,86999.0,86998.0,0.002]
[1745256917857,0.64769679,86999.0,86998.0,0.002]
[1745256918362,0.64669679,86999.0,86998.0,0.002]
[1745256918549,0.65740033,86999.0,86998.0,0.001]
[1745256918951,0.65940033,86999.0,86998.0,0.002]
[1745256919156,0.01149874,86966.0,86963.0,0.0004221]
[1745256919314,0.22997854,86965.0,86963.0,0.0004221]
[1745256919519,0.01249874,86966.0,86963.0,0.0004221]
[1745256919766,0.001,86966.0,86964.0,0.22998009]
[1745256920377,0.24247398,86966.0,86963.0,0.23140457]
[1745256920579,0.001,86965.0,86963.0,0.23240457]
[1745256920798,0.001,86965.0,86963.0,0.0014221]
[1745256921633,0.22998022,86964.0,86963.0,0.0004221]
[1745256923222,0.23198022,86964.0,86963.0,0.0004221]
[1745256924277,0.002,86964.0,86963.0,0.0004221]
[1745256924480,0.23198022,86964.0,86963.0,0.0004221]
[1745256926506,0.34573616,86964.0,86963.0,0.0004221]
[1745256926793,0.49573616,86964.0,86963.0,0.0004221]
[1745256927134,0.34573616,86964.0,86963.0,0.0004221]
[1745256927911,0.34373616,86964.0,86963.0,0.0004221]
[1745256928321,0.34673616,86964.0,86963.0,0.0004221]
[1745256928687,0.34873616,86964.0,86963.0,0.0004221]
[1745256931187,0.11975594,86964.0,86963.0,0.0004221]
[1745256931407,0.34973616,86964.0,86963.0,0.0004221]
[1745256931562,0.36350469,86964.0,86963.0,0.0004221]
[1745256931764,0.367469,86964.0,86963.0,0.0004221]
[1745256931988,0.25371306,86964.0,86963.0,0.0004221]
[1745256934902,0.02373284,86964.0,86963.0,0.23040496]
[1745256935460,0.006,86964.0,86963.0,0.23040496]
[1745256935659,0.006,86964.0,86963.0,0.23270444]
[1745256935862,0.004,86964.0,86963.0,0.23270444]
[1745256936073,0.001,86964.0,86963.0,1.04524756]
[1745256936288,0.01149478,86996.0,86963.0,1.04524756]
[1745256936289,0.01149478,86996.0,86990.0,0.22991052]
[1745256936520,0.24140248,86992.0,86989.0,0.2299132]
[1745256936694,0.01149438,86999.0,86988.0,0.24141056]
[1745256936695,0.24138294,86999.0,86996.0,0.24138911]
[1745256936898,0.24138294,86999.0,86993.0,0.01149517]
[1745256936899,0.01149478,86996.0,86994.0,0.2299003]
[1745256937099,0.01149478,86996.0,86993.0,0.01149517]
[1745256937100,0.01149412,87001.0,86993.0,0.01149517]
[1745256937295,0.01149412,87001.0,86991.0,0.01149544]
[1745256937296,0.24139239,86996.0,86991.0,0.01149544]
[1745256937508,0.01149438,86999.0,86994.0,0.24139425]
[1745256937714,0.12524913,87008.0,87002.0,0.01149398]
[1745256937915,0.004,87039.0,86983.0,0.0457]
[1745256937916,0.01149174,87019.0,87005.0,0.22986656]
[1745256938159,0.0114924,87014.0,87009.0,0.38910535]
[1745256938462,0.01149266,87012.0,87009.0,0.40059841]
[1745256938672,0.01149253,87013.0,87009.0,0.2413538]
[1745256938897,0.01149161,87020.0,86993.0,0.28737843]
[1745256939132,0.13309147,87021.0,87019.0,0.22983312]
[1745256939133,0.1216,87021.0,87019.0,0.22983312]
[1745256939353,0.1216,87021.0,87018.0,0.01149187]
[1745256939567,0.1216,87021.0,87018.0,0.24132762]
[1745256939803,0.01149081,87026.0,87021.0,0.01149147]
[1745256940046,0.24130815,87026.0,87022.0,0.24131677]
[1745256940269,0.22981987,87025.0,87021.0,0.24132011]
[1745256940482,0.01149121,87023.0,87019.0,0.24132411]
[1745256940701,0.24434467,87013.0,87009.0,0.001]
[1745256940905,0.01149266,87012.0,87007.0,0.01149332]
[1745256941116,0.24134467,87013.0,87009.0,0.01149306]
[1745256941318,0.01149346,87006.0,87000.0,1.18302633]
[1745256941542,0.22987977,87002.0,87000.0,0.35878718]
[1745256941755,0.01149517,86993.0,86990.0,0.37023056]
[1745256941959,0.22990884,86991.0,86990.0,0.35878718]
[1745256942395,0.22990884,86991.0,86979.0,0.01149702]
[1745256942396,0.24142205,86985.0,86980.0,0.01149689]
[1745256942643,0.24142205,86985.0,86981.0,0.22993527]
[1745256942854,0.02641672,86984.0,86981.0,0.22993527]
[1745256943064,0.24143825,86979.0,86975.0,0.22995039]
[1745256943273,0.24143825,86979.0,86970.0,0.01149821]
[1745256943274,0.22994913,86976.0,86970.0,0.24146256]
[1745256943633,0.01489419,86975.0,86970.0,0.24146256]
[1745256944248,0.01489419,86975.0,86972.0,0.22995843]
[1745256944463,0.01489419,86975.0,86973.0,0.22995523]
[1745256945075,0.01689419,86975.0,86973.0,0.22995523]
[1745256945287,0.24684598,86975.0,86972.0,0.24145638]
[1745256945489,0.01689419,86975.0,86972.0,0.24145638]
[1745256945919,0.01489419,86975.0,86972.0,0.24145638]
[1745256946071,0.01469906,86975.0,86972.0,0.24145638]
[1745256946275,0.24144509,86977.0,86973.0,0.002]
[1745256946479,0.01486458,86976.0,86973.0,0.002]
[1745256946724,0.026362,86976.0,86973.0,0.002]
[1745256946924,0.22995193,86975.0,86973.0,0.002]
[1745256947315,0.01485876,86974.0,86973.0,0.002]
[1745256947650,0.01485876,86974.0,86972.0,0.23095778]
[1745256948075,0.01485876,86974.0,86973.0,0.001]
[1745256948591,0.01485876,86974.0,86973.0,0.002]
[1745256949040,0.01685876,86974.0,86973.0,0.003]
[1745256950697,0.01685876,86974.0,86973.0,0.23295642]
[1745256950913,0.01685876,86974.0,86973.0,0.23525564]
[1745256951125,0.002,86974.0,86973.0,0.34671236]
[1745256952473,0.002,86974.0,86973.0,0.23295642]
[1745256954219,0.002,86974.0,86973.0,0.23525574]
[1745256954627,0.002,86974.0,86973.0,0.003]
[1745256955092,0.2461298,86974.0,86973.0,0.003]
[1745256955545,0.01617603,86974.0,86973.0,0.003]
[1745256955749,0.2461298,86974.0,86973.0,0.003]
[1745256955935,0.01617603,86974.0,86973.0,0.003]
[1745256956297,0.2461298,86974.0,86973.0,0.003]
[1745256956666,0.01617603,86974.0,86973.0,0.003]
[1745256956875,0.2461298,86974.0,86973.0,0.003]
[1745256960077,0.35988574,86974.0,86973.0,0.003]
[1745256960941,0.35988574,86974.0,86973.0,0.002]
[1745256961153,0.36088574,86974.0,86973.0,0.001]
[1745256961307,0.22998022,86964.0,86963.0,0.0004221]
[1745256961743,0.2440677,86964.0,86963.0,0.0004221]
[1745256961943,0.35782364,86964.0,86963.0,0.0004221]
[1745256962743,0.40752364,86964.0,86963.0,0.0024221]
[1745256962936,0.96552364,86964.0,86963.0,0.0024221]
[1745256963344,0.97612502,86964.0,86963.0,0.0014221]
[1745256963545,0.9973293,86964.0,86963.0,0.0024221]
[1745256963725,0.9973293,86964.0,86963.0,0.0014221]
[1745256963936,1.1236222,86964.0,86963.0,1e-08]
[1745256964151,1.1236222,86964.0,86951.0,0.004]
[1745256964152,0.61771196,86952.0,86951.0,0.004]
[1745256964364,0.8814679,86952.0,86951.0,1e-08]
[1745256964578,0.916485,86952.0,86951.0,1e-08]
[1745256964786,0.92708638,86952.0,86951.0,1e-08]
[1745256965195,0.92808638,86952.0,86951.0,1e-08]
[1745256965421,0.93651327,86952.0,86951.0,1e-08]
[1745256965627,0.93551327,86952.0,86951.0,1e-08]
[1745256965827,0.93751327,86952.0,86951.0,1e-08]
[1745256966241,0.230049,86938.0,86937.0,0.0004223]
[1745256966444,0.71014494,86938.0,86937.0,0.0004223]
[1745256966683,0.72391702,86938.0,86937.0,0.0004223]
[1745256966889,0.735165,86938.0,86937.0,0.0004223]
[1745256967514,1.075165,86938.0,86937.0,0.0004223]
[1745256968147,1.077165,86938.0,86937.0,0.0004223]
[1745256968483,0.41127702,86938.0,86937.0,0.0004223]
[1745256968686,0.24982108,86938.0,86937.0,0.0004223]
[1745256968901,0.01977208,86938.0,86937.0,0.0004223]
[1745256969118,0.01877208,86938.0,86937.0,0.0004223]
[1745256969331,0.01877208,86938.0,86937.0,0.092887]
[1745256969548,0.02177208,86938.0,86937.0,0.09618724]
[1745256969761,0.008,86938.0,86937.0,0.09618724]
[1745256970192,0.003,86938.0,86937.0,0.09618724]
[1745256970444,0.002,86938.0,86937.0,0.32523624]
[1745256970653,0.004,86938.0,86937.0,0.322936]
[1745256971060,0.005,86938.0,86937.0,0.322936]
[1745256971263,0.00279786,86938.0,86937.0,0.2304713]
[1745256971476,0.00279786,86938.0,86937.0,0.23277152]
[1745256971700,0.00379786,86938.0,86937.0,0.23277152]
[1745256971909,0.00379786,86938.0,86937.0,0.2304713]
[1745256973856,0.00379786,86938.0,86937.0,0.70531455]
[1745256974057,0.00379786,86938.0,86937.0,1.05855527]
[1745256974321,0.00379786,86938.0,86937.0,1.15101997]
[1745256974688,0.001,86964.0,86963.0,0.22998286]
[1745256974884,0.001,86964.0,86963.0,0.23228233]
[1745256976288,0.001,86964.0,86963.0,0.23328233]
[1745256976583,0.002,86964.0,86963.0,0.23328233]
[1745256976797,0.002,86964.0,86963.0,0.23228233]
[1745256976944,0.002,86964.0,86963.0,0.23198286]
[1745256977583,0.00187691,86964.0,86963.0,0.23210595]
[1745256978175,0.00187691,86964.0,86963.0,0.00212309]
[1745256978347,0.11563285,86964.0,86963.0,0.00212309]
[1745256978530,0.12949703,86964.0,86963.0,0.00212309]
[1745256978954,0.12949703,86964.0,86963.0,0.00012309]
[1745256979160,0.12949703,86964.0,86963.0,0.00312309]
[1745256979581,0.12849703,86964.0,86963.0,0.00012309]
[1745256979802,0.12949703,86964.0,86963.0,0.00112309]
[1745256980405,0.13049703,86964.0,86963.0,0.00212309]
[1745256980635,0.01674109,86964.0,86963.0,0.00212309]
[1745256981706,0.01674109,86964.0,86963.0,0.00112309]
[1745256982132,0.01674109,86964.0,86963.0,0.00212309]
[1745256983772,0.01658198,86964.0,86963.0,0.09688728]
[1745256983962,0.0027178,86964.0,86963.0,0.22518381]
[1745256984888,0.0027178,86964.0,86963.0,0.13041988]
[1745256985292,0.0027178,86964.0,86963.0,0.00112309]
[1745256985736,0.0007178,86964.0,86963.0,0.00212309]
[1745256985938,0.0017178,86964.0,86963.0,0.00312309]
[1745256987134,0.0017178,86964.0,86963.0,0.23310595]
[1745256989415,0.0017178,86964.0,86963.0,0.23540526]
[1745256989995,0.00159071,86964.0,86963.0,0.23540526]
[1745256990229,0.00159071,86964.0,86963.0,0.36370205]
[1745256990437,0.00159071,86964.0,86963.0,0.36140274]
[1745256990881,0.001,86964.0,86963.0,0.70268894]
[1745256991088,0.001,86964.0,86963.0,0.70127965]
[1745256991307,0.001,86964.0,86963.0,0.70268894]
[1745256992138,0.37924,86992.0,86990.0,0.22991148]
[1745256992357,0.01149478,86996.0,86992.0,0.22990366]
[1745256992573,0.01405328,86991.0,86990.0,0.22991079]
[1745256992810,0.01149517,86993.0,86990.0,0.22991079]
[1745256993018,0.01405328,86991.0,86990.0,0.22991079]
[1745256993232,0.01149517,86993.0,86990.0,0.23091079]
[1745256993457,0.01405328,86991.0,86990.0,0.23091079]
[1745256993680,0.24139737,86994.0,86991.0,0.22990778]
[1745256994452,0.001,86996.0,86995.0,0.22989827]
[1745256994670,0.01149451,86998.0,86995.0,0.22989827]
[1745256994885,0.0008448,86999.0,86998.0,0.22989034]
[1745256995092,0.0008448,86999.0,86998.0,0.23218897]
[1745256995706,0.0008448,86999.0,86998.0,0.23218877]
[1745256996169,0.0018448,86999.0,86998.0,0.25355837]
[1745256996401,0.12144,87018.0,87015.0,0.01149227]
[1745256996626,0.01233495,87031.0,87022.0,0.01149134]
[1745256996851,0.0008448,87031.0,87030.0,0.22980581]
[1745256997061,0.0008448,87031.0,87026.0,0.01149081]
[1745256997062,0.0008448,87031.0,87027.0,0.22981373]
[1745256997276,0.23064818,87031.0,87027.0,0.22981373]
[1745256997479,0.0008448,87031.0,87029.0,0.22980845]
[1745256997921,0.22980942,87029.0,87025.0,0.22981757]
[1745256998529,0.22980921,87029.0,87025.0,0.22981736]
[1745256998783,0.01149055,87028.0,87023.0,0.01149121]
[1745256999002,0.01149055,87028.0,87025.0,0.001]
[1745256999451,0.22981484,87027.0,87025.0,0.001]
[1745256999864,0.01448853,87026.0,87024.0,0.22982037]
[1745257000070,0.01448853,87026.0,87025.0,0.23081901]
[1745257000516,0.002,87028.0,87027.0,0.22981373]
[1745257000751,0.002,87028.0,87026.0,0.22981413]
[1745257000957,0.003,87028.0,87026.0,0.22981413]
[1745257001177,0.003,87028.0,87027.0,0.22981373]
[1745257001398,0.0008448,87031.0,87030.0,0.22980581]
[1745257001608,0.0008448,87031.0,87030.0,0.23210352]
[1745257002250,0.0008448,87031.0,87030.0,0.2325128]
[1745257002669,0.00064667,87031.0,87030.0,0.2325128]
[1745257002851,0.00264667,87031.0,87030.0,0.2325128]
[1745257004679,0.00268667,87031.0,87030.0,0.2325128]
[1745257006596,0.00268667,87031.0,87030.0,0.23021509]
[1745257010424,0.01756555,87031.0,87030.0,0.23021509]
[1745257010633,0.00268667,87031.0,87030.0,0.23021509]
[1745257010849,0.01756555,87031.0,87030.0,0.23021509]
[1745257011050,0.00268667,87031.0,87030.0,0.23021509]
[1745257011257,0.01756555,87031.0,87030.0,0.23021509]
[1745257011463,0.00268667,87031.0,87030.0,0.23021509]
[1745257011672,0.01756064,87031.0,87030.0,0.23021509]
[1745257011879,0.01756064,87031.0,87030.0,0.00040928]
[1745257012290,0.01756064,87031.0,87030.0,0.23021509]
[1745257012496,0.01756064,87031.0,87030.0,0.23251286]
[1745257013170,0.00268667,87031.0,87030.0,0.23251286]
[1745257013826,0.00268667,87031.0,87030.0,0.36080965]
[1745257014036,0.00268667,87031.0,87030.0,0.35851188]
[1745257015142,0.00068667,87031.0,87030.0,0.35851188]
[1745257015792,0.00068667,87031.0,87030.0,0.23021509]
[1745257016018,0.23048984,87031.0,87030.0,0.00140928]
[1745257016225,0.23148984,87031.0,87030.0,0.00140928]
[1745257016443,0.24636381,87031.0,87030.0,0.00040928]
[1745257016858,0.24636381,87031.0,87030.0,0.00240928]
[1745257017068,0.40561975,87031.0,87030.0,0.00240928]
[1745257017268,0.94531975,87031.0,87030.0,0.00340928]
[1745257017487,0.01149438,86999.0,86996.0,0.22989535]
[1745257017703,0.24138305,86999.0,86995.0,0.23031939]
[1745257017917,0.22989312,86997.0,86995.0,0.0004221]
[1745257018130,0.02625169,86998.0,86995.0,0.0004221]
[1745257018349,0.01475136,86996.0,86995.0,0.0004221]
[1745257018773,0.01149451,86998.0,86995.0,0.0004221]
[1745257018979,0.22989415,86997.0,86995.0,0.0004221]
[1745257019379,0.24464842,86997.0,86995.0,0.0004221]
[1745257020311,0.22989624,86996.0,86992.0,0.09648659]
[1745257020509,0.01249478,86996.0,86992.0,0.09648659]
[1745257020716,0.25614187,86995.0,86991.0,0.24140246]
[1745257021133,0.25614187,86995.0,86992.0,0.22990618]
[1745257021341,0.01474846,86995.0,86993.0,0.23220154]
[1745257021547,0.01149279,87011.0,86993.0,0.23220154]
[1745257021548,0.01149372,87004.0,87000.0,0.24137742]
[1745257021709,0.01149279,87011.0,87005.0,0.01149359]
[1745257021912,0.22985388,87012.0,87007.0,0.22986526]
[1745257022178,0.0497,87019.0,87009.0,0.01149306]
[1745257022376,0.2413297,87018.0,87009.0,0.01379144]
[1745257022575,0.24134641,87012.0,87009.0,0.22985863]
[1745257022973,0.24134879,87011.0,87008.0,0.01149319]
[1745257023184,0.24134879,87011.0,87007.0,0.24135887]
[1745257023590,0.0114924,87014.0,87008.0,0.01149319]
[1745257023796,0.24133518,87016.0,87013.0,0.22984838]
[1745257024002,0.001,87012.0,87009.0,0.22986102]
[1745257024201,0.001,87012.0,87010.0,0.22985602]
[1745257024431,0.001,87011.0,87010.0,0.22985602]
[1745257025249,0.001,87012.0,87011.0,0.22985599]
[1745257025582,0.01149227,87015.0,87012.0,0.22985144]
[1745257025798,0.01149227,87015.0,87013.0,0.02142266]
[1745257025996,0.001,87014.0,87013.0,0.02142266]
[1745257026200,0.001,87014.0,87013.0,0.22985071]
[1745257026408,0.01149227,87015.0,87013.0,0.22985071]
[1745257026706,0.01149332,87007.0,87003.0,0.22987713]
[1745257026909,0.01149306,87009.0,87006.0,0.22986876]
[1745257027145,0.01349279,87011.0,87007.0,0.02142569]
[1745257027368,0.24334882,87011.0,87007.0,0.25129065]
[1745257027574,0.01463392,87010.0,87008.0,0.02142569]
[1745257028220,0.001,87009.0,87008.0,0.02142569]
[1745257028433,0.24135792,87008.0,87004.0,0.22987448]
[1745257028844,0.01451499,87007.0,87005.0,0.02141865]
[1745257029068,0.2298692,87006.0,87005.0,0.02141865]
[1745257029287,0.02600554,87006.0,87002.0,0.22987849]
[1745257029722,0.02600554,87006.0,86999.0,0.01149438]
[1745257029917,0.02600554,87006.0,87003.0,0.22987626]
[1745257030318,0.02700554,87006.0,87003.0,0.22987626]
[1745257030521,0.24136543,87005.0,87001.0,0.22988176]
[1745257030723,0.24136543,87005.0,86998.0,0.2298894]
[1745257030930,0.01450627,87004.0,87000.0,0.22988505]
[1745257031355,0.01450336,87003.0,87001.0,0.2298817]
[1745257031705,0.24236314,87006.0,87002.0,0.22987977]
[1745257031928,0.01249359,87005.0,87002.0,0.22987977]
[1745257032326,0.24136314,87006.0,87003.0,0.22987526]
[1745257032558,0.001,87003.0,86992.0,0.0114953]
[1745257032763,0.01149398,87002.0,86998.0,0.22988911]
[1745257033395,0.01149398,87002.0,86999.0,0.22988638]
[1745257033609,0.01149412,87001.0,86995.0,0.01149491]
[1745257033816,0.01149412,87001.0,86998.0,0.22988986]
[1745257033971,0.01133714,87000.0,86995.0,0.2298979]
[1745257034182,0.24137802,87001.0,86998.0,0.001]
[1745257034382,0.24137124,87003.0,86998.0,0.001]
[1745257034581,0.01249398,87002.0,86998.0,0.001]
[1745257034791,0.22988769,86999.0,86998.0,0.001]
[1745257035014,0.01249398,87002.0,86998.0,0.001]
[1745257035224,0.001,87000.0,86998.0,0.23088931]
[1745257035546,0.001,87000.0,86998.0,0.22988931]
[1745257035786,0.001,87000.0,86998.0,0.23088931]
[1745257036073,0.01452504,86999.0,86998.0,0.23088931]
[1745257036317,0.22990884,86991.0,86986.0,0.22991953]
[1745257036531,0.22993527,86981.0,86980.0,0.419]
[1745257036727,0.01149702,86979.0,86973.0,0.419]
[1745257036927,0.01149689,86980.0,86973.0,0.43049782]
[1745257037329,0.01440385,86979.0,86975.0,0.22995078]
[1745257037768,0.01149729,86977.0,86974.0,0.24145127]
[1745257037981,0.01149729,86977.0,86974.0,0.22995359]
[1745257038180,0.01439513,86976.0,86973.0,0.43049782]
[1745257038411,0.25584229,86976.0,86973.0,0.419]
[1745257038609,0.02389255,86976.0,86975.0,0.001]
[1745257038857,0.22995113,86975.0,86959.0,0.23944207]
[1745257039072,0.22896435,86970.0,86959.0,0.23944207]
[1745257039520,0.35552106,86970.0,86959.0,0.23944207]
[1745257039990,0.35552106,86970.0,86954.0,0.01150033]
[1745257040207,0.35752106,86970.0,86953.0,0.01150046]
[1745257040422,0.35737796,86970.0,86952.0,0.24151185]
[1745257040636,0.35637796,86970.0,86951.0,0.004]
[1745257040853,0.70502595,86970.0,86951.0,0.004]
[1745257041096,0.87502595,86970.0,86969.0,1e-08]
[1745257041310,0.87602595,86970.0,86969.0,0.00100001]
[1745257041528,0.87302595,86970.0,86969.0,1e-08]
[1745257041748,0.87702595,86970.0,86969.0,0.00100001]
[1745257041968,1.00122595,86970.0,86969.0,0.00100001]
[1745257042183,0.99722595,86970.0,86969.0,1e-08]
[1745257042430,1.00022595,86970.0,86969.0,0.00100001]
[1745257042671,1.00622595,86970.0,86969.0,0.00100001]
[1745257043963,0.82761796,86970.0,86969.0,0.00100001]
[1745257044176,0.48761796,86970.0,86969.0,0.00100001]
[1745257044605,0.37386202,86970.0,86969.0,0.00100001]
[1745257045722,0.64761796,86970.0,86969.0,0.00100001]
[1745257046206,0.98861796,86970.0,86969.0,0.00100001]
[1745257046424,0.22999873,86957.0,86956.0,0.0004221]
[1745257046634,0.23001196,86952.0,86937.0,0.0004223]
[1745257046824,0.5029679,86952.0,86937.0,0.0004223]
[1745257046996,0.51654576,86952.0,86937.0,0.0004223]
[1745257048081,0.52054576,86952.0,86937.0,0.0004223]
[1745257048285,0.29678982,86952.0,86937.0,0.0004223]
[1745257048517,0.30078982,86952.0,86938.0,0.23004852]
[1745257048715,0.30078982,86952.0,86937.0,0.01192488]
[1745257048925,0.30378982,86952.0,86951.0,0.005]
[1745257050142,0.29578982,86952.0,86951.0,0.005]
[1745257050339,0.29578982,86952.0,86951.0,0.004]
[1745257050713,0.29878982,86952.0,86951.0,0.005]
[1745257051114,0.01957786,86952.0,86951.0,0.005]
[1745257051349,0.01957786,86952.0,86951.0,0.2350146]
[1745257052116,0.01957786,86952.0,86951.0,0.005]
[1745257052875,0.0193367,86952.0,86951.0,0.005]
[1745257053247,0.006,86952.0,86951.0,0.005]
[1745257053796,0.01932833,86952.0,86951.0,0.005]
[1745257053928,0.006,86952.0,86951.0,0.005]
[1745257054128,0.01932833,86952.0,86951.0,0.2350146]
[1745257054337,0.01932833,86952.0,86951.0,0.23731457]
[1745257054338,0.006,86952.0,86951.0,0.23731457]
[1745257054544,0.006,86952.0,86951.0,0.2350146]
[1745257054760,0.006,86952.0,86951.0,0.23731437]
[1745257054975,0.003,86952.0,86951.0,0.35007031]
[1745257055213,0.01149821,86970.0,86961.0,0.0114994]
[1745257055451,0.01149848,86968.0,86966.0,0.22997454]
[1745257055885,0.01341643,86967.0,86966.0,0.22997454]
[1745257056102,0.01149834,86969.0,86966.0,0.22997454]
[1745257056339,0.01149848,86968.0,86965.0,0.22997654]
[1745257057127,0.01741643,86967.0,86965.0,0.22997654]
[1745257058078,0.01341643,86967.0,86965.0,0.22997654]
[1745257058286,0.01341643,86967.0,86965.0,0.001]
[1745257058488,0.01441643,86967.0,86965.0,0.001]
[1745257058693,0.24438932,86967.0,86965.0,0.001]
[1745257058902,0.01441643,86967.0,86965.0,0.001]
[1745257059123,0.24439013,86967.0,86965.0,0.001]
[1745257059527,0.25588874,86967.0,86964.0,0.22997947]
[1745257059730,0.01149874,86966.0,86965.0,0.001]
[1745257059941,0.24147367,86966.0,86965.0,0.001]
[1745257060147,0.2548872,86966.0,86965.0,0.001]
[1745257060605,0.22999873,86957.0,86956.0,0.23944207]
[1745257060832,0.24340953,86957.0,86956.0,0.23944207]
[1745257061778,0.0134108,86957.0,86956.0,0.46944345]
[1745257061989,0.24147683,86965.0,86960.0,0.24148859]
[1745257062200,0.01348208,86964.0,86961.0,0.22998815]
[1745257062419,0.01348208,86964.0,86963.0,0.22998286]
[1745257062633,0.24145566,86973.0,86969.0,0.22996699]
[1745257062836,0.0250033,86972.0,86969.0,0.22996699]
[1745257063037,0.01149808,86971.0,86968.0,0.22996802]
[1745257063300,0.01149808,86971.0,86967.0,0.01149861]
[1745257063301,0.01149834,86969.0,86965.0,0.22997232]
[1745257063470,0.0250033,86972.0,86965.0,0.22997232]
[1745257063471,0.01349953,86970.0,86965.0,0.01149887]
[1745257063679,0.002,86973.0,86971.0,0.01149808]
[1745257063842,0.002,86973.0,86971.0,0.01379749]
[1745257064043,0.0114961,86986.0,86982.0,0.22993053]
[1745257064271,0.22992725,86985.0,86982.0,0.22993053]
[1745257064471,0.22993041,86983.0,86980.0,0.229936]
[1745257064677,0.2414323,86981.0,86978.0,0.22994113]
[1745257065432,0.01149676,86981.0,86978.0,0.22994113]
[1745257065571,0.2414322,86981.0,86978.0,0.22994113]
[1745257065780,0.01149676,86981.0,86978.0,0.22994113]
[1745257065981,0.01359491,86980.0,86978.0,0.22994113]
[1745257066235,0.24353378,86980.0,86978.0,0.22994113]
[1745257066815,0.24353378,86980.0,86978.0,0.23094113]
[1745257067018,0.24353378,86980.0,86978.0,0.22994113]
[1745257067215,0.24553378,86980.0,86978.0,0.001]
[1745257067460,0.24853378,86980.0,86978.0,0.002]
[1745257069424,0.24853378,86980.0,86978.0,0.23194285]
[1745257070021,0.24853378,86980.0,86978.0,0.01340424]
[1745257070460,0.01859491,86980.0,86978.0,0.24334605]
[1745257070668,0.01859491,86980.0,86979.0,0.22994056]
[1745257071055,0.005,86980.0,86979.0,0.22994056]
[1745257071277,0.005,86980.0,86979.0,0.23223977]
[1745257071512,0.01126341,86990.0,86979.0,0.22994056]
[1745257071701,0.24117697,86990.0,86987.0,0.22991831]
[1745257072196,0.01365008,86989.0,86987.0,0.22991831]
[1745257072859,0.24356422,86989.0,86987.0,0.22991831]
[1745257073073,0.01365008,86989.0,86985.0,0.01149623]
[1745257073285,0.01365008,86989.0,86988.0,0.24445762]
[1745257073489,0.01149346,87006.0,87001.0,0.01149412]
[1745257073687,0.02383928,87008.0,87002.0,0.22987948]
[1745257073864,0.01369658,87005.0,87003.0,0.22987677]
[1745257074067,0.000844,87008.0,87007.0,0.22986656]
[1745257074382,0.000844,87008.0,87007.0,0.23216494]
[1745257075559,0.000844,87008.0,87007.0,0.24348488]
[1745257075795,0.000844,87008.0,87007.0,0.2411865]
[1745257076473,0.003844,87008.0,87007.0,0.2411865]
[1745257077909,0.00359984,87008.0,87007.0,0.2411865]
[1745257078785,0.00259984,87008.0,87007.0,0.2411865]
[1745257079112,0.00059984,87008.0,87007.0,0.2411865]
[1745257079307,0.00159984,87008.0,87007.0,0.2411865]
[1745257079964,0.00159984,87008.0,87007.0,0.36948329]
[1745257080142,0.00159984,87008.0,87007.0,0.65402536]
[1745257080571,0.00159984,87008.0,87007.0,0.25076201]
[1745257080791,0.00059984,87008.0,87007.0,0.23944207]
[1745257080989,0.01467517,87008.0,87007.0,0.25119179]
[1745257081189,0.00059984,87008.0,87007.0,0.48105835]
[1745257081404,0.01468493,87008.0,87007.0,0.46930863]
[1745257081558,0.01468493,87008.0,87007.0,0.36930863]
[1745257081990,0.24454885,87008.0,87007.0,0.13944207]
[1745257082555,0.01468493,87008.0,87007.0,0.36930863]
[1745257082938,0.00059984,87008.0,87007.0,0.37030863]
[1745257083349,0.00059984,87008.0,87007.0,0.3446225]
[1745257083350,0.01466488,87008.0,87007.0,0.3446225]
[1745257083545,0.00059984,87008.0,87007.0,0.53375594]
[1745257083755,0.00059984,87008.0,87007.0,0.7636225]
[1745257088175,0.00059984,87008.0,87007.0,0.42]
[1745257088471,0.01585138,87008.0,87007.0,0.42]
[1745257088723,0.23046376,87008.0,87007.0,0.36690784]
[1745257088987,0.2457153,87008.0,87007.0,0.36690784]
[1745257089469,0.22987055,87006.0,87003.0,0.01156975]
[1745257089735,0.22989298,86997.0,86996.0,0.36690784]
[1745257089966,0.01149438,86999.0,86996.0,0.36690784]
[1745257090201,0.22988342,87001.0,86997.0,0.24138619]
[1745257090443,0.24125767,87000.0,86997.0,0.24138619]
[1745257090866,0.24137932,87000.0,86997.0,0.24138619]
[1745257091983,0.24138237,86999.0,86996.0,0.36890784]
[1745257092194,0.24138237,86999.0,86996.0,0.002]
[1745257092195,0.22989298,86997.0,86996.0,0.002]
[1745257092404,0.01149544,86991.0,86986.0,0.0114961]
[1745257092605,0.01149544,86991.0,86983.0,0.01149649]
[1745257092606,0.24040692,86991.0,86985.0,0.01249623]
[1745257092811,0.24040692,86991.0,86986.0,0.01156745]
[1745257093013,0.22991259,86990.0,86987.0,0.2299192]